Workbook

Sheet Лист1
B1: МБОУ "Средняя общеобразовательная школа №21" НМР РТ | E1: Согласование: | F1: должность | G1: Директор
F2: фамилия | G2: Сираев И.Р.
D3: 7-11 лет | F3: дата | G3: 19 | H3: 3 | I3: 2024
G4: день | H4: месяц | I4: год
A5: День недели | B5: Прием пищи | C5: Раздел меню | D5: Блюда | E5: Вес блюда, г | F5: Белки | G5: Жиры | H5: Углеводы | I5: Калорийность | J5: № рецептуры | K5: Цена
A6: 7 | B6: Завтрак | C6: хлеб бел. | D6: Батон нарезной | E6: 60 | F6: 4.5 | G6: 1.74 | H6: 30.84 | I6: 157.2 | K6: 39.05
C7: доп.гарнир | D7: Яйцо отварное | E7: 40 | F7: 5.08 | G7: 4.6 | H7: 0.28 | I7: 63
C8: гор.блюдо | D8: Каша геркулесовая молочная | E8: 200 | F8: 6.29 | G8: 10.15 | H8: 30.56 | I8: 241.26
C9: гор.напиток | D9: Чай с сахаром | E9: 200 | F9: 0.07 | G9: 0.02 | H9: 8.00 | I9: 32
C12: итого | E12: =E6+E7+E8+E9 -> 500 | F12: =SUM(F6:F11) -> 15.94 | G12: =SUM(G6:G11) -> 16.51 | H12: =SUM(H6:H11) -> 69.68 | I12: =SUM(I6:I11) -> 493.46 | K12: =SUM(K6:K11) -> 39.05
A13: =A6 -> 7 | B13: Обед | C13: 1 блюдо | D13: Рассольник Ленинградский со сметаной | E13: 205 | F13: 5.94 | G13: 6.82 | H13: 24.56 | I13: 94.9 | K13: 80.66
C14: 2 блюдо | D14: Жаркое из птицы (куриных грудок) | E14: 200 | F14: 17.01 | G14: 18.47 | H14: 52.76 | I14: 473.54
C15: доп. гарнир | D15: Капуста квашеная | E15: 35 | F15: 0.59 | G15: 1.75 | H15: 2.94 | I15: 29.99
C16: напиток | D16: Напиток из изюма и яблок | E16: 200 | F16: 0.2 | G16: 0.1 | H16: 19.82 | I16: 68.12
C17: хлеб бел. | D17: Хлеб пшеничный | E17: 30 | F17: 2.28 | G17: 0.24 | H17: 14.76 | I17: 70.5
C18: хлеб черн. | D18: Хлеб ржаной | E18: 30 | F18: 1.98 | G18: 0.36 | H18: 11.88 | I18: 59.4
C21: итого | E21: =SUM(E13:E20) -> 700 | F21: =SUM(F13:F20) -> 28.00 | G21: =SUM(G13:G20) -> 27.74 | H21: =SUM(H13:H20) -> 126.72 | I21: =SUM(I13:I20) -> 796.45 | K21: =SUM(K13:K20) -> 80.66
A22: =A6 -> 7 | B22: Итого за день: | E22: =E12+E21 -> 1200 | F22: =F12+F21 -> 43.94 | G22: =G12+G21 -> 44.25 | H22: =H12+H21 -> 196.4 | I22: =I12+I21 -> 1289.91 | K22: =K12+K21 -> 119.71
